bitfinex/quotes_ETHUSD_20241215
["timestamp","ask_amount","ask_price","bid_price","bid_amount"]
[1734229158554,0.88987984,3887.0,3886.3,0.7669]
[1734229158758,1.07487959,3886.9,3886.3,0.7669]
[1734229159211,3.29963746,3886.8,3886.3,0.7669]
[1734229159354,0.88987984,3886.7,3886.3,0.7669]
[1734229159566,1.07487959,3886.8,3886.4,4.0]
[1734229159758,2.84202897,3886.7,3886.4,4.0]
[1734229160011,2.57291,3886.7,3886.4,4.0]
[1734229160719,2.57291,3886.7,3886.3,0.7669]
[1734229160720,2.57291,3886.7,3886.3,4.7669]
[1734229163056,2.57291,3886.7,3886.3,4.7169]
[1734229163606,2.57291,3886.7,3886.4,4.0]
[1734229165210,1.58204096,3886.8,3886.4,4.0]
[1734229165211,1.07487959,3886.8,3886.4,4.0]
[1734229165393,1.6163101,3887.0,3886.4,4.0]
[1734229165394,1.60051031,3887.0,3886.5,0.47169]
[1734229165573,0.52563072,3887.0,3886.5,4.0]
[1734229165808,2.4101383,3886.9,3886.5,4.0]
[1734229165998,0.89017081,3886.8,3886.5,4.7639]
[1734229166214,1.60051031,3887.0,3886.5,4.7639]
[1734229166363,0.52563072,3887.0,3886.5,4.7639]
[1734229166715,0.52563072,3887.0,3886.6,4.0]
[1734229167105,1.60051031,3887.0,3886.6,4.0]
[1734229167284,1.43439071,3886.9,3886.6,4.0]
[1734229167488,0.89016581,3886.8,3886.5,0.7639]
[1734229167689,1.07487959,3886.9,3886.5,0.7639]
[1734229167924,0.89019069,3886.8,3886.5,0.7639]
[1734229168090,1.07487959,3886.9,3886.5,0.7639]
[1734229168287,3.82599687,3887.0,3886.5,0.7639]
[1734229168487,2.22550154,3886.9,3886.5,0.7639]
[1734229168916,3.30038113,3886.9,3886.5,0.7639]
[1734229169511,0.89019462,3886.8,3886.5,0.7639]
[1734229169842,1.60051031,3887.0,3886.5,0.7639]
[1734229170007,0.89019684,3886.9,3886.5,0.7639]
[1734229170402,0.52563072,3887.0,3886.6,4.0]
[1734229170587,3.82606947,3887.0,3886.6,4.0]
[1734229170800,0.89022366,3886.9,3886.6,4.0]
[1734229171257,1.60051031,3887.0,3886.6,4.0]
[1734229171420,2.22567392,3886.9,3886.6,4.0]
[1734229171610,3.30055351,3886.9,3886.6,4.0]
[1734229172005,2.22567392,3886.8,3886.6,4.0]
[1734229172260,0.89026703,3886.7,3886.6,4.0]
[1734229172602,3.30058085,3886.8,3886.6,4.0]
[1734229172806,0.89026703,3886.7,3886.6,4.0]
[1734229173029,1.96514662,3886.8,3886.6,4.0]
[1734229173229,0.89026703,3886.7,3886.6,4.0]
[1734229173430,0.89026703,3886.8,3886.6,4.0]
[1734229173635,0.89026703,3886.7,3886.6,4.0]
[1734229173804,0.89026703,3886.8,3886.6,4.0]
[1734229174020,2.14194082,3887.0,3886.6,4.0]
[1734229174021,1.60051031,3887.0,3886.6,4.0]
[1734229174223,4.79822461,3886.9,3886.6,4.0]
[1734229174579,2.22546012,3886.8,3886.5,0.7639]
[1734229175077,2.57284,3886.8,3886.5,0.7639]
[1734229175224,3.46306653,3886.7,3886.5,0.7639]
[1734229175550,2.57288,3886.7,3886.5,0.7639]
[1734229175846,0.89015564,3886.6,3886.5,0.7639]
[1734229176250,3.46313564,3886.6,3886.4,4.0]
[1734229176552,2.57314,3886.3,3885.7,0.8294]
[1734229179269,2.57004297,3886.3,3885.7,0.8294]
[1734229183389,2.57004297,3886.3,3885.3,1.14149533]
[1734229183390,2.57334,3886.0,3885.4,0.8294]
[1734229183548,0.44130226,3886.3,3885.4,0.8294]
[1734229183750,2.57345,3885.9,3885.4,0.8294]
[1734229184487,0.8313,3886.0,3885.4,0.8294]
[1734229187758,1.58663267,3886.3,3885.4,0.8294]
[1734229188076,0.88921579,3886.2,3885.4,0.8294]
[1734229188468,1.34305308,3886.3,3885.4,0.8294]
[1734229189911,0.51175308,3886.3,3885.4,2.46798486]
[1734229190204,0.51175308,3886.3,3885.5,0.8241]
[1734229191406,1.07487959,3886.5,3885.5,3.39776]
[1734229191605,3.29798147,3886.5,3885.5,3.39776]
[1734229191804,1.39891288,3886.4,3885.5,3.39776]
[1734229192116,0.50967213,3886.4,3885.5,3.39776]
[1734229193786,1.07487959,3886.5,3885.5,3.39776]
[1734229193987,1.90617959,3886.6,3885.6,0.45392553]
[1734229194182,0.88950788,3886.5,3885.6,0.45392553]
[1734229194492,1.90617959,3886.6,3885.6,0.45392553]
[1734229194804,3.71426533,3886.9,3885.8,0.769]
[1734229194805,1.07487959,3886.7,3885.8,0.769]
[1734229195012,1.07487959,3886.7,3885.7,1.14149533]
[1734229195013,1.07487959,3886.9,3886.0,0.769]
[1734229195383,3.29905007,3886.8,3886.0,0.769]
[1734229195601,0.88966819,3886.7,3886.0,0.769]
[1734229195808,1.07487959,3886.8,3886.0,0.769]
[1734229196008,1.07487959,3886.8,3886.1,0.35788321]
[1734229196216,3.29964255,3886.8,3886.1,0.35788321]
[1734229197042,0.88990518,3886.7,3886.2,0.769]
[1734229197316,4.62293046,3887.4,3886.2,0.769]
[1734229197317,1.07487959,3886.9,3886.2,0.769]
[1734229198282,0.89021057,3886.8,3886.2,0.769]
[1734229198482,1.07487959,3886.9,3886.2,0.769]
[1734229199489,1.96526313,3886.9,3886.2,0.769]
[1734229200829,2.22672925,3886.8,3886.2,0.769]
[1734229201033,0.8906917,3886.7,3886.2,1.27680806]
[1734229201210,1.07487959,3886.9,3886.2,1.27680806]
[1734229201557,1.96557174,3886.8,3886.2,1.27680806]
[1734229202033,1.96557174,3886.8,3886.2,3.84994806]
[1734229202034,3.30160996,3886.8,3886.2,3.84994806]
[1734229202236,0.89069215,3886.7,3886.2,3.84994806]
[1734229202536,1.07487959,3886.9,3886.3,0.49914434]
[1734229202722,0.89094401,3886.8,3886.3,0.49914434]
[1734229203434,1.07487959,3886.9,3886.4,0.769]
[1734229203939,1.07487959,3886.9,3886.4,3.34206]
[1734229203940,1.96585491,3886.9,3886.4,3.34206]
[1734229204246,1.96585491,3886.9,3886.5,2.57297]
[1734229204539,1.33646298,3887.0,3886.3,1.64063967]
[1734229204540,1.07487959,3887.0,3886.7,0.773]
[1734229204738,0.89095042,3886.9,3886.7,0.773]
[1734229204922,1.07487959,3887.1,3886.7,0.773]
[1734229205100,0.89091332,3887.0,3886.7,0.773]
[1734229205412,1.96579291,3887.1,3886.7,0.773]
[1734229205737,0.89083513,3887.0,3886.7,1.107597]
[1734229205938,1.07487959,3887.1,3886.7,1.107597]
[1734229206112,0.89082857,3887.0,3886.7,1.107597]
[1734229206319,1.59622635,3887.2,3886.7,1.107597]
[1734229206522,2.22699198,3887.1,3886.7,1.107597]
[1734229208540,1.59622635,3887.2,3886.7,1.107597]
[1734229208744,0.89057398,3887.1,3886.7,1.107597]
[1734229211741,3.3009347,3887.1,3886.2,3.773]
[1734229211906,1.32294676,3887.2,3886.2,0.773]
[1734229211907,3.3009347,3887.0,3886.2,0.773]
[1734229212102,2.22605511,3886.9,3886.2,0.773]
[1734229212414,1.07487959,3887.0,3886.2,0.773]
[1734229212927,1.9653461,3887.0,3886.2,3.34619]
[1734229213134,1.9653461,3887.0,3886.2,3.81860274]
[1734229213135,2.22617276,3886.9,3886.2,3.81860274]
[1734229213641,0.8904691,3886.8,3886.2,3.81860274]
[1734229213820,1.07487959,3887.0,3886.2,3.81860274]
[1734229214341,1.07487959,3887.0,3886.2,1.24541274]
[1734229214342,1.96534016,3887.0,3886.2,1.24541274]
[1734229214653,3.30103101,3886.9,3886.2,0.773]
[1734229214801,4.10263101,3886.8,3885.9,0.773]
[1734229215005,2.41057044,3886.7,3885.9,0.773]
[1734229215402,3.30103101,3886.7,3885.9,0.773]
[1734229216205,3.87292512,3886.7,3885.9,0.773]
[1734229216456,2.22622569,3886.6,3885.9,0.773]
[1734229217415,0.89053393,3886.5,3885.9,0.773]
[1734229217756,1.07487959,3886.6,3885.9,0.773]
[1734229217915,1.96546999,3886.6,3885.9,0.773]
[1734229218309,3.93047157,3886.6,3885.9,0.773]
[1734229218511,3.30135559,3886.5,3885.9,0.773]
[1734229219942,1.70399557,3886.6,3885.9,0.773]
[1734229220142,0.89059405,3886.5,3885.9,0.773]
[1734229220378,1.07487959,3886.6,3885.9,0.773]
[1734229221975,3.30137089,3886.6,3885.9,0.773]
[1734229222182,2.2264913,3886.5,3885.9,0.773]
[1734229222387,0.89059652,3886.4,3885.9,0.773]
[1734229222559,1.58511437,3886.6,3885.9,0.773]
[1734229222889,2.22653753,3886.5,3885.9,0.773]
[1734229223912,2.22653753,3886.5,3885.5,0.8128]
[1734229223913,1.90807959,3886.3,3885.5,0.8128]
[1734229224068,2.22666809,3886.2,3885.5,0.8128]
[1734229224270,3.30154768,3886.2,3885.5,0.8128]
[1734229224476,2.22666809,3886.2,3885.5,0.8128]
[1734229224798,0.89061501,3886.1,3885.5,0.8128]
[1734229224981,1.64998537,3886.2,3885.5,0.8128]
[1734229225151,2.2268261,3886.1,3885.5,0.8128]
[1734229225353,1.07487959,3886.3,3885.6,3.38639]
[1734229225562,2.4109532,3886.3,3885.7,0.8128]
[1734229225775,0.89071574,3886.2,3885.7,0.8128]
[1734229225977,0.35819054,3886.2,3885.7,0.8128]
[1734229226177,3.65982788,3886.2,3885.7,0.8128]
[1734229226362,0.89069963,3886.1,3885.7,0.8128]
[1734229230427,1.07487959,3886.4,3885.9,0.8128]
[1734229230594,1.07487959,3886.6,3886.0,0.19800308]
[1734229230804,1.07487959,3886.6,3886.1,0.8128]
[1734229231113,2.41083532,3886.6,3886.1,0.8128]
[1734229231319,0.89065614,3886.5,3886.1,0.8128]
[1734229231626,1.07487959,3886.6,3886.1,0.8128]
[1734229231987,1.96558875,3886.6,3886.1,0.8128]
[1734229232214,0.89070916,3886.5,3886.1,0.8128]
[1734229232426,1.07487959,3886.7,3886.1,0.8128]
[1734229232915,3.30184354,3886.7,3886.1,0.8128]
[1734229233479,3.30184354,3886.6,3886.1,0.8128]
[1734229233683,0.89078558,3886.5,3886.1,0.8128]
[1734229233995,0.89090191,3886.4,3886.1,0.8128]
[1734229234198,1.07487959,3886.6,3886.1,0.8128]
[1734229234587,1.96577883,3886.6,3886.1,0.8128]
[1734229234811,2.22745705,3886.5,3886.1,0.8128]
[1734229235014,1.07487959,3886.6,3886.1,0.8128]
[1734229235220,1.07487959,3886.7,3886.3,2.57313]
[1734229235408,3.5270256,3887.3,3886.1,1.14149533]
[1734229235409,1.07487959,3886.8,3886.4,0.8128]
[1734229235702,1.07487959,3887.1,3886.6,0.8128]
[1734229236217,3.30218431,3887.1,3886.6,0.8128]
[1734229236420,0.89092189,3887.0,3886.6,0.8128]
[1734229236592,1.07487959,3887.1,3886.6,0.8128]
[1734229236793,0.89090661,3887.0,3886.6,0.8128]
[1734229237822,1.07487959,3887.1,3886.6,0.8128]
[1734229237992,1.96580553,3887.1,3886.6,0.8128]
[1734229238193,3.30219444,3887.1,3886.6,0.8128]
[1734229238394,0.89092594,3887.0,3886.6,3.38573]
[1734229238707,1.07487959,3887.1,3886.6,3.83845253]
[1734229239329,1.96579428,3887.1,3886.6,3.83845253]
[1734229239531,2.22728673,3887.0,3886.6,3.83845253]
[1734229239839,1.07487959,3887.1,3886.7,0.8128]
[1734229240208,1.96582205,3887.0,3886.7,0.8128]
[1734229241020,2.22735615,3886.9,3886.7,0.8128]
[1734229241345,1.07487959,3887.1,3886.7,0.8128]
[1734229241556,3.30224971,3887.0,3886.7,0.8128]
[1734229241699,0.89094805,3886.9,3886.7,0.8128]
[1734229242048,1.07487959,3887.0,3886.7,0.8128]
[1734229242426,1.07487959,3887.2,3886.7,0.8128]
[1734229242625,1.96577151,3887.2,3886.9,2.57273]
[1734229242889,1.07487959,3887.3,3887.0,0.8128]
[1734229243187,1.07487959,3887.4,3887.0,3.38545]
[1734229243482,0.89081649,3887.3,3887.0,3.38545]
[1734229243630,1.58207805,3887.5,3887.0,3.38545]
[1734229243946,2.2267375,3887.4,3887.0,3.38545]
[1734229244790,1.58207805,3887.5,3887.0,3.38545]
[1734229244962,2.22648619,3887.4,3887.0,3.38545]
[1734229245328,3.30136578,3887.4,3887.0,0.8128]
[1734229247058,0.89059183,3887.3,3887.0,0.8128]
[1734229247262,1.58207805,3887.5,3887.0,0.8128]
[1734229247487,0.89049921,3887.4,3887.0,0.8128]
[1734229247661,1.07487959,3887.5,3887.0,0.8128]
[1734229248328,0.89041887,3887.4,3887.0,0.8128]
[1734229248565,0.89041887,3887.5,3887.0,3.38546]
[1734229248865,1.59746017,3887.6,3887.1,2.5726]
[1734229249027,0.89031802,3887.5,3887.1,2.5726]
[1734229249428,0.52258058,3887.6,3887.2,0.774]
[1734229249629,0.89021629,3887.5,3887.2,0.774]
[1734229250112,0.52258058,3887.6,3887.2,0.774]
[1734229250252,2.9328283,3887.6,3887.2,0.774]
[1734229250455,0.89025257,3887.5,3887.2,0.774]
[1734229253157,0.89025257,3887.5,3886.9,0.8204]
[1734229253361,0.52258058,3887.6,3886.9,1.29340749]
[1734229253678,0.8899943,3887.5,3886.9,1.29340749]
[1734229254460,0.52258058,3887.6,3886.9,1.29340749]
[1734229260417,0.52258058,3887.6,3886.9,0.8204]
[1734229260600,0.7994,3887.4,3886.3,2.5731]
[1734229260913,0.88972916,3887.3,3886.4,0.8204]
[1734229261798,0.88972916,3887.3,3886.4,3.39344]
[1734229261992,0.88972916,3887.3,3886.5,0.45349353]
[1734229262198,0.88972916,3887.3,3886.6,3.39334]
[1734229262400,0.52258058,3887.6,3886.7,0.8204]
[1734229262401,1.59746017,3887.6,3886.7,0.8204]
[1734229262724,2.2242292,3887.5,3886.7,0.8204]
[1734229263432,2.2242292,3887.5,3886.7,0.5716]
[1734229264332,2.2242292,3887.5,3886.8,1.14149533]
[1734229264893,1.59746017,3887.6,3886.8,1.14149533]
[1734229265054,0.88971189,3887.5,3886.8,1.14149533]
[1734229265223,0.88971189,3887.4,3886.7,2.57286]
[1734229265423,1.9987772,3887.6,3886.7,2.57286]
[1734229265609,2.22442463,3887.5,3886.7,2.57286]
[1734229265911,3.29930422,3887.5,3886.7,2.57286]
[1734229266504,0.88976985,3887.4,3886.8,0.8109]
[1734229266702,1.9987772,3887.6,3886.8,0.8109]
[1734229266938,2.2244664,3887.5,3886.8,0.8109]
[1734229267162,3.96324136,3887.5,3886.8,0.8109]
[1734229267319,3.29934599,3887.4,3886.8,0.8109]
[1734229269005,1.96466615,3887.4,3886.8,0.8109]
[1734229269202,2.2248725,3887.3,3886.8,0.8109]
[1734229269444,1.07487959,3887.4,3886.8,0.8109]
[1734229269613,0.26108376,3887.3,3886.8,0.8109]
[1734229269818,0.89000445,3887.2,3886.8,0.8109]
[1734229270018,0.26108376,3887.3,3886.8,0.8109]
[1734229270269,0.89000535,3887.2,3886.8,0.8109]
[1734229271150,1.59746017,3887.6,3886.9,2.57273]
[1734229271443,1.59746017,3887.6,3887.0,1.26341253]
[1734229271444,0.8901655,3887.5,3887.0,1.26341253]
[1734229271631,0.52258058,3887.6,3887.0,1.26341253]
[1734229271815,0.8901716,3887.5,3887.0,0.8109]
[1734229272526,1.59746017,3887.6,3887.0,0.8109]
[1734229272720,2.22586482,3887.5,3887.0,0.8109]
[1734229273180,1.59746017,3887.6,3887.0,0.8109]
[1734229273181,3.30074441,3887.4,3887.0,0.8109]
[1734229273471,2.22607737,3887.3,3887.0,0.8109]
[1734229273672,1.07487959,3887.4,3887.0,0.8109]
[1734229273673,0.89062759,3887.2,3887.0,0.8109]
[1734229273839,1.07487959,3887.3,3887.0,0.8109]
[1734229274040,0.89065644,3887.2,3887.0,0.8109]
[1734229274227,1.07487959,3887.3,3887.0,0.8109]
[1734229274421,0.89065748,3887.2,3887.0,0.8109]
[1734229275474,0.89065748,3887.1,3887.0,0.8109]
[1734229276984,2.2266437,3887.1,3887.0,0.8109]
[1734229277278,4.55810663,3887.1,3886.0,0.8109]
[1734229277494,1.07808548,3886.9,3886.0,1.95239533]
[1734229277776,3.30472918,3886.8,3886.0,4.52571533]
[1734229277990,2.2266437,3886.7,3886.0,4.52571533]
[1734229278286,0.89065748,3886.6,3886.0,4.52571533]
[1734229278433,2.41569042,3886.7,3886.1,3.0]
[1734229278631,0.89169909,3886.6,3886.1,3.0]
[1734229278869,1.07808548,3886.7,3886.1,3.0]
[1734229279183,0.89170424,3886.6,3886.1,3.0]
[1734229279685,1.07808548,3886.7,3886.1,3.0]
[1734229279831,0.89180022,3886.6,3886.1,3.0]
[1734229280032,1.07808548,3886.7,3886.1,3.0]
[1734229280283,0.89180049,3886.6,3886.1,3.0]
[1734229280441,1.07808548,3886.7,3886.1,3.0]
[1734229280646,0.8919144,3886.6,3886.1,3.0]
[1734229280995,1.07808548,3886.7,3886.1,3.0]
[1734229281288,0.89192117,3886.6,3886.1,3.0]
[1734229281583,1.07808548,3886.7,3886.1,3.0]
[1734229281890,2.22991155,3886.6,3886.1,3.0]
[1734229282036,1.07808548,3886.7,3886.1,3.0]
[1734229282240,2.22991121,3886.6,3886.1,3.0]
[1734229282489,1.07808548,3886.7,3886.1,5.57322]
[1734229282693,0.89191241,3886.6,3886.1,5.57322]
[1734229282856,1.07808548,3886.7,3886.1,5.57322]
[1734229283194,0.89191354,3886.6,3886.1,5.57322]
[1734229283400,0.89191354,3886.6,3885.5,2.57364]
[1734229283401,1.3241,3886.3,3885.5,2.68536596]
[1734229283688,0.7542,3885.5,3884.5,1.07414638]
[1734229283833,3.30820666,3885.4,3884.4,4.53707533]
[1734229284033,3.30820666,3885.3,3884.5,0.6274893]
[1734229284351,2.3705101,3885.5,3884.4,0.8212]
[1734229284352,3.30816641,3885.2,3884.4,0.8212]
[1734229284556,1.07841873,3885.2,3884.4,0.8212]
[1734229284752,0.89101538,3885.1,3884.4,0.8212]
[1734229285066,1.07841873,3885.2,3884.4,0.8212]
[1734229285591,1.07841873,3885.4,3884.4,0.8212]
[1734229285740,4.12196196,3885.4,3884.4,0.8212]
[1734229286094,3.30420679,3885.3,3884.4,0.8212]
[1734229286561,0.8177689,3885.4,3884.4,0.8212]
[1734229286749,0.8897401,3885.3,3884.4,0.8212]
[1734229286949,0.8177689,3885.4,3884.4,0.8212]
[1734229287191,0.50852726,3885.3,3884.4,0.8212]
[1734229287355,0.88978145,3885.2,3884.4,0.8212]
[1734229287680,0.50852726,3885.3,3884.4,0.8212]
[1734229287999,0.50852726,3885.3,3884.1,3.0]
[1734229288000,0.7542,3885.1,3884.1,0.7659]
[1734229289035,2.57411,3884.9,3884.1,0.7659]
[1734229289235,0.332831,3884.8,3884.1,0.7659]
[1734229291659,3.1242,3884.7,3883.6,0.7659]
[1734229292468,0.50680935,3884.4,3883.6,0.7659]
[1734229292800,2.57404,3885.0,3883.7,1.14149533]
[1734229293095,0.7542,3885.1,3883.8,0.19073953]
[1734229293260,1.89569533,3885.1,3883.8,0.19073953]
[1734229294384,0.52487843,3884.8,3883.8,0.19073953]
[1734229295384,0.7542,3885.1,3883.9,0.7659]
[1734229295583,3.32791,3885.5,3884.1,3.34047]
[1734229295786,3.32791,3885.5,3884.1,3.80774049]
[1734229296002,0.50490463,3885.1,3884.1,3.80774049]
[1734229296661,0.50490463,3885.1,3884.1,1.23317049]
[1734229296986,0.50490463,3885.1,3884.1,0.7659]
[1734229298285,3.07884463,3885.1,3884.1,0.7659]
[1734229301391,0.50490463,3885.1,3884.1,0.7659]
[1734229301709,3.32828,3884.9,3884.1,0.7659]
[1734229302212,0.55,3884.8,3884.1,0.7659]
[1734229302356,1.102468,3884.8,3884.1,0.7659]
[1734229309216,0.50876686,3884.6,3884.1,0.7659]
[1734229315615,0.7597,3885.2,3884.1,2.57459]
[1734229315805,0.7597,3885.2,3884.0,1.14149533]
[1734229315806,0.50852726,3885.3,3884.2,0.7731]
[1734229316332,0.50852726,3885.3,3884.2,0.96455953]
[1734229316701,0.5049816,3885.1,3884.2,0.96455953]
[1734229316905,0.7597,3885.8,3884.8,0.7731]
[1734229317111,2.21991406,3886.0,3884.8,0.7731]
[1734229317397,2.21991406,3886.0,3885.1,0.7731]
[1734229317398,1.14149533,3886.0,3885.1,0.7731]
[1734229317602,0.50616555,3885.8,3885.1,0.7731]
[1734229319398,0.24816555,3885.8,3885.1,0.7731]
[1734229323178,1.38966088,3885.8,3885.1,0.7731]
[1734229323353,1.38966088,3885.8,3884.5,0.7731]
[1734229323354,0.7597,3885.7,3884.5,0.7731]
[1734229323676,0.55,3885.4,3884.5,0.7731]
[1734229323966,2.5738,3885.3,3884.5,0.7731]
[1734229324522,1.62841873,3885.4,3884.5,0.7731]
[1734229324748,0.55,3885.4,3884.5,0.7731]
[1734229325675,0.88951624,3885.3,3884.5,0.7731]
[1734229326574,0.88951624,3885.2,3884.5,0.7731]
[1734229326781,1.62841873,3885.4,3884.5,0.7731]
[1734229327064,0.52352571,3885.1,3884.5,0.7731]
[1734229328632,1.96967686,3885.0,3884.5,0.7731]
[1734229328850,0.89125813,3884.9,3884.5,0.7731]
[1734229329055,1.07841873,3885.0,3884.5,0.7731]
[1734229329375,1.96968309,3885.0,3884.5,0.7731]
[1734229329579,3.30657963,3884.9,3884.5,0.7731]
[1734229329878,0.89163023,3884.8,3884.5,0.7731]
[1734229330035,1.07841873,3885.0,3884.5,0.7731]
[1734229330238,0.89161749,3884.9,3884.5,0.7731]
[1734229332670,0.89161749,3884.8,3884.5,0.7731]
[1734229332886,1.07841873,3884.9,3884.5,0.7731]
[1734229333081,0.89170745,3884.8,3884.5,0.7731]
[1734229333257,0.89170745,3884.7,3884.5,0.7731]
[1734229333456,1.07841873,3884.9,3884.5,0.7731]
[1734229333680,3.307697,3884.8,3883.6,3.64901638]
[1734229333880,1.6788288,3884.9,3883.6,3.64901638]
[1734229333881,3.307697,3884.7,3884.1,0.8166]
[1734229334091,1.07841873,3884.7,3884.1,0.8166]
[1734229334383,5.8692589,3884.9,3884.1,0.8166]
[1734229334384,3.30781695,3884.6,3884.1,0.8166]
[1734229334542,0.89175929,3884.5,3884.1,0.8166]
[1734229335196,0.89175929,3884.4,3884.1,0.8166]
[1734229335368,1.07841873,3884.6,3884.1,0.8166]
[1734229335569,0.89178405,3884.5,3884.1,0.8166]
[1734229336281,0.89178405,3884.4,3884.1,0.8166]
[1734229336493,1.07841873,3884.6,3884.1,0.8166]
[1734229336695,0.89176753,3884.5,3884.1,0.8166]
[1734229337061,1.07841873,3884.7,3884.1,0.8166]
[1734229337295,0.89172405,3884.6,3884.1,0.8166]
[1734229337481,0.89172405,3884.5,3884.1,0.8166]
[1734229337699,1.07841873,3884.7,3884.1,0.8166]
[1734229337908,0.89173537,3884.6,3884.1,0.8166]
[1734229338083,0.89173537,3884.6,3884.1,1.01240953]
[1734229338489,1.07841873,3884.9,3884.1,2.77037953]
[1734229338661,0.8916863,3884.8,3884.2,0.8166]
[1734229338865,2.13983581,3885.1,3884.2,0.8166]
[1734229338866,1.07841873,3884.9,3884.2,0.8166]
[1734229339082,0.89169657,3884.8,3884.4,0.8166]
[1734229339475,1.07841873,3885.0,3884.4,0.8166]
[1734229339682,0.89170687,3884.9,3884.4,0.8166]
[1734229339900,1.07841873,3885.0,3884.4,0.8166]
[1734229340105,0.89170163,3884.9,3884.4,0.8166]
[1734229340263,1.07841873,3885.0,3884.4,0.8166]
[1734229340465,1.6163101,3885.2,3884.4,0.8166]
[1734229340466,1.07841873,3885.2,3884.6,0.8166]
[1734229340668,1.07841873,3885.4,3884.9,0.8166]
[1734229340979,0.89164563,3885.3,3884.9,0.8166]
[1734229341169,1.07841873,3885.5,3884.9,0.8166]
[1734229341363,0.51228595,3885.6,3884.9,1.26982553]
[1734229341364,0.89150662,3885.4,3884.9,1.26982553]
[1734229341664,0.89150662,3885.4,3884.9,0.8166]
[1734229341665,0.89150449,3885.3,3884.9,0.8166]
[1734229341868,0.89150449,3885.2,3884.9,0.8166]
[1734229342065,0.89155276,3885.1,3884.9,0.8166]
[1734229342705,1.07841873,3885.2,3884.9,0.8166]
[1734229343019,0.8915526,3885.1,3884.9,0.8166]
[1734229343364,0.8915526,3885.0,3884.9,0.8166]
[1734229344716,0.8915526,3885.0,3884.5,0.7982]
[1734229344871,0.8915526,3885.0,3884.5,1.58907631]
[1734229345471,0.8915526,3884.9,3884.5,0.7982]
[1734229345700,1.07841873,3885.0,3884.5,0.7982]
[1734229345905,0.89157347,3884.9,3884.5,0.7982]
[1734229346220,0.89157347,3884.8,3884.5,0.7982]
[1734229347188,1.07841873,3885.0,3884.5,0.7982]
[1734229347515,0.89164618,3884.9,3884.5,0.7982]
[1734229347721,0.89164618,3884.8,3884.5,0.7982]
[1734229347976,1.07841873,3885.0,3884.5,0.7982]
[1734229348141,3.30754073,3884.9,3884.5,0.7982]
[1734229348467,0.8916488,3884.8,3884.5,0.7982]
[1734229349834,2.22921751,3884.8,3884.5,0.7982]
[1734229350031,1.07841873,3884.9,3884.5,0.7982]
[1734229350260,0.89170879,3884.8,3884.5,0.7982]
[1734229350475,0.89170879,3884.7,3884.5,0.7982]
[1734229350627,1.07841873,3884.9,3884.5,0.7982]
[1734229350831,1.07841873,3884.9,3883.5,1.61121958]
[1734229350832,0.7825,3884.7,3883.6,1.07414638]
[1734229351071,0.7825,3884.7,3883.3,0.7982]
[1734229351072,1.14149533,3883.9,3883.3,0.7982]
[1734229351231,1.07841873,3884.0,3883.3,0.7982]
[1734229351436,1.07841873,3883.9,3883.3,0.7982]
[1734229351849,0.89176238,3883.8,3883.3,0.7982]
[1734229352234,1.33764745,3884.0,3883.4,0.19396953]
[1734229352581,3.30768183,3883.9,3883.3,0.7982]
[1734229352738,3.30768183,3883.8,3883.3,0.7982]
[1734229352937,1.07841873,3883.8,3883.3,0.7982]
[1734229353174,0.89161565,3883.9,3883.3,0.7982]
[1734229353175,1.97003438,3883.9,3883.3,0.7982]
[1734229353377,2.2286562,3883.8,3883.3,0.7982]
[1734229353576,0.89161565,3883.7,3883.3,0.7982]
[1734229353787,1.07841873,3883.9,3883.3,0.7982]
[1734229354077,1.07841873,3884.0,3883.3,0.7982]
[1734229354381,0.89130325,3883.9,3883.3,0.7982]
[1734229354550,1.07841873,3884.1,3883.3,0.7982]
[1734229354881,1.58551607,3884.2,3883.3,0.7982]
[1734229355051,0.8910937,3884.1,3883.4,0.19396953]
[1734229355442,0.50709734,3884.2,3883.4,0.19396953]
[1734229355681,0.89099419,3884.1,3883.4,0.19396953]
[1734229355981,1.58551607,3884.2,3883.4,0.19396953]
[1734229356274,0.89098915,3884.1,3883.4,0.19396953]
[1734229357339,0.50709734,3884.2,3883.4,0.19396953]
[1734229359944,0.50709734,3884.2,3883.5,0.7982]
[1734229363973,0.50709734,3884.2,3883.5,1.15492795]
[1734229364321,0.50709734,3884.2,3883.6,0.8298]
[1734229364471,1.62841873,3884.6,3883.6,0.8298]
[1734229364677,0.89033233,3884.5,3883.6,0.8298]
[1734229364905,0.52099018,3884.5,3883.6,0.8298]
[1734229365216,0.52099018,3884.5,3883.7,0.49030033]
[1734229365727,0.52099018,3884.5,3883.8,0.8298]
[1734229370135,1.07841873,3884.7,3884.0,1.14149533]
[1734229370390,1.6163101,3884.8,3884.0,1.14149533]
[1734229370391,0.8906829,3884.6,3884.1,0.8298]
[1734229370549,1.07841873,3884.8,3884.1,0.8298]
[1734229371727,1.58235564,3884.8,3884.1,0.8298]
[1734229371946,2.2266681,3884.7,3884.1,0.8298]
[1734229372152,1.07841873,3884.9,3884.3,0.8298]
[1734229372306,3.30521886,3884.9,3884.3,0.8298]
[1734229372648,1.6163101,3885.1,3884.3,0.8298]
[1734229372649,0.89072005,3884.8,3884.3,0.8298]
[1734229372827,1.07841873,3885.0,3884.4,0.22888795]
[1734229373652,3.30517886,3885.0,3884.4,0.22888795]
[1734229374203,0.89069629,3884.9,3884.4,0.22888795]
[1734229374526,1.07841873,3885.0,3884.4,0.22888795]
[1734229374744,0.89071577,3884.9,3884.4,0.22888795]
[1734229374917,1.58415744,3885.1,3884.4,0.22888795]
[1734229374918,1.58415744,3885.1,3884.5,0.47747033]
[1734229375239,2.22675898,3885.0,3884.5,0.47747033]
[1734229375427,2.22675898,3885.0,3884.6,0.8298]
[1734229376141,3.30517771,3885.0,3884.6,0.8298]
[1734229376549,1.07841873,3885.2,3884.6,0.8298]
[1734229376753,1.96914867,3885.2,3884.6,0.8298]
[1734229376904,2.22682485,3885.1,3884.6,0.8298]
[1734229377105,1.07841873,3885.2,3884.6,1.02692953]
[1734229377306,0.89070444,3885.1,3884.7,0.8298]
[1734229377621,1.07841873,3885.4,3884.7,0.8298]
[1734229378067,1.07841873,3885.2,3884.7,0.8298]
[1734229379365,1.07841873,3885.2,3884.5,0.8298]
[1734229380067,1.07841873,3885.1,3884.5,0.8298]